Cogmind - Beta 17 @@@ ROGUE MODE // 2026.07.06 @ 22:09:02 Player: ChCbias Result: Destroyed by H-61 Shepherd with Heavy Assault Cannon Performance ------------- Evolutions (3) 1500 Regions Visited (7) 1400 Robots Destroyed (36) 180 Value Destroyed (1072) 1072 Prototype IDs (2) 40 Alien Tech Used (0) 0 Bonus (1212) 1212 TOTAL SCORE: 5404 Bonus ------- Follower Combat Kills 12 Entered Garrisons 200 Used RIF Installer 500 Entered DSFs 500 Cogmind --------- Core Integrity 0/700 Matter 194/300 Energy 40/100 System Corruption 0% Temperature Cool (0) Movement Core (50) Location -7/DSF Parts ------- > --- POWER (2) -------- (None) > --- PROPULSION (4) --- (None) > --- UTILITY (5) ------ (None) > --- WEAPON (2) ------- (None) > --- INVENTORY (5) ---- Weight Redist. System Improved Melee Analysis Suite Advanced ECM Suite Peak State ------------ > --- POWER ------------ Deuterium Engine Micro Nuclear Core > --- PROPULSION ------- Gravmag System Gravmag System Surge Thruster Surge Thruster > --- UTILITY ---------- Weight Redist. System Sensor Array Transmission Jammer Propulsion Shielding Relay Coupler [Sentry] > --- WEAPON ----------- Chainsword > --- INVENTORY -------- Weight Redist. System Improved Melee Analysis Suite Advanced ECM Suite [Rating: 38] Favorites ----------- Power Light Nuclear Core Engine Ion Engine Power Core Light Nuclear Core Propulsion VTOL Module Leg Aluminum Leg Wheel Wheel Hover Unit Gravmag System Flight Unit VTOL Module Utility Small Storage Unit Device Sensor Array Storage Small Storage Unit Processor Signal Interpreter Hackware Relay Coupler [Sentry] Protection Propulsion Shielding Weapon Small Laser Energy Gun Small Laser Energy Cannon Advanced Beam Cannon Ballistic Gun Light Assault Rifle Ballistic Cannon Improved Light Cannon Special Weapon Remote Datajack Impact Weapon Great Maul Slashing Weapon Katana Build | -11 -10 -9 -9 -9 -8 -7 -7 ------- Run | Yrd Mat Mat Sto Gar Mat Fac DSF Slots Evolved 6 | . . 2 . . 2 2 . Power 1 | . . . . . . 1 . Propulsion 2 | . . 2 . . . . . Utility 3 | . . . . . 2 1 . Weapon . | . . . . . . . . Parts Attached 51 | 6 11 8 2 15 4 2 3 Power 7 | 1 1 . . 4 . 1 . Engine 4 | 1 . . . 2 . 1 . Core 3 | . 1 . . 2 . . . Reactor . | . . . . . . . . Propulsion 18 | 2 5 2 . 8 . . 1 Treads . | . . . . . . . . Leg 5 | 2 2 . . 1 . . . Wheel 1 | . 1 . . . . . . Hover 2 | . . . . 2 . . . Flight 10 | . 2 2 . 5 . . 1 Utility 10 | 1 1 2 . 2 3 1 . Device 5 | . . 1 . 1 2 1 . Storage 2 | 1 . 1 . . . . . Processor 1 | . 1 . . . . . . Hackware 1 | . . . . . 1 . . Protection 1 | . . . . 1 . . . Artifact . | . . . . . . . . Weapon 16 | 2 4 4 2 1 1 . 2 Energy Gun 5 | 2 2 . 1 . . . . Energy Cannon 1 | . . 1 . . . . . Ballistic Gun 2 | . . 2 . . . . . Ballistic Cannon 1 | . . 1 . . . . . Launcher . | . . . . . . . . Special Weapon 1 | . . . . 1 . . . Impact Weapon 1 | . . . . . 1 . . Slashing Weapon 5 | . 2 . 1 . . . 2 Piercing Weapon . | . . . . . . . . Special Melee Weapon . | . . . . . . . . Unidentified Prototypes 2 | . . 1 1 . . . . Parts Lost 29 | . 6 . . 15 1 . 7 Power 7 | . 1 . . 4 . . 2 Propulsion 12 | . 2 . . 7 . . 3 Utility 4 | . . . . 2 . . 2 Weapon 6 | . 3 . . 2 1 . . Highest Loss Streak 8 | . 4 . . 8 1 . 7 To Critical Strikes . | . . . . . . . . Average Backups 6 | 3 7 7 8 6 3 3 3 Power . | . 1 1 1 . . . . Propulsion 1 | 2 3 . 1 . . . . Utility 3 | . 2 4 5 4 2 3 3 Weapon 1 | . 1 . 1 1 1 . . Tool/Special . | . . . . . . . . Unused Backups 11 | . 4 2 . 2 1 . 2 Power 1 | . . 1 . . . . . Propulsion 3 | . 3 . . . . . . Utility 4 | . 1 . . . 1 . 2 Weapon 2 | . . 1 . 1 . . . Tool/Special 1 | . . . . 1 . . . Average Slot Usage (%) 82 | . 89 96 100 66 88 89 54 Engine 4 | . 9 . . 2 . 7 3 Core 5 | . 4 11 11 3 9 7 4 Leg 8 | . 21 . . 2 . . . Hover 3 | . . . . 3 18 15 6 Flight 17 | . 4 43 44 21 18 15 7 Device 4 | . . . . 1 18 19 16 Storage 9 | . 14 10 11 8 . . . Processor 6 | . 7 11 11 7 . . . Hackware 1 | . . . . . 7 7 5 Protection 1 | . . . . 1 9 7 3 Energy Gun 10 | . 22 2 6 3 . . . Ballistic Cannon 2 | . . 5 8 3 1 1 . Special Weapon 1 | . . . . 1 6 . . Slashing Weapon 2 | . 3 . 2 4 . . 3 Peak Build Rating 38 | 6 13 20 20 27 32 37 38 Average Rating 14 | 4 7 17 18 13 29 35 22 On Entrance 18 | . 6 12 17 20 27 32 37 Avg Prop Armor Cover (%) 16 | . 13 . . 16 16 15 15 Naked Turns 9 | . . . . . . . 9 Heaviest Build 22 | 13 15 17 17 16 16 22 22 Greatest Support 24 | 20 20 20 20 20 24 24 24 Greatest Overweight (x) 3 | . 2 . . 3 . . . Average Overweight (x) . | . . . . . . . . Largest Inventory Capacity 8 | 8 8 8 8 8 5 5 5 Average Capacity 7 | 6 8 7 8 7 5 5 5 Most Carried 8 | 6 8 8 8 8 5 3 3 Average Carried 6 | 3 7 7 8 6 3 2 3 Final Capacity 8 | 8 8 8 8 5 5 5 5 Final Carried 8 | 6 8 8 8 4 4 3 3 Class Distribution -------------------- 50% | Mutant 28% | Scavenger-Mutant 21% | Sprinter Dominant Class ---------------- Mutant | -10/Materials Sprinter | -9/Materials Sprinter | -9/Storage Mutant | -9/Garrison Scavenger-Mutant | -8/Materials Scavenger-Mutant | -7/Factory Scavenger-Mutant | -7/DSF Resources | -11 -10 -9 -9 -9 -8 -7 -7 ----------- Run | Yrd Mat Mat Sto Gar Mat Fac DSF Matter Collected 822 | 218 151 80 . 351 . . 22 Remotely . | . . . . . . . . Salvage Created 1220 | . 606 127 50 415 . . 22 Parts 83 | . 32 14 4 29 . . 4 Haulers Intercepted 3 | . 1 2 . . . . . Recyclers Shooed 1 | . 1 . . . . . . Parts Field Recycled . | . . . . . . . . Retrieved Matter . | . . . . . . . . Parts Self-Destructed . | . . . . . . . . Prevented . | . . . . . . . . Parts Restored . | . . . . . . . . Kills | -11 -10 -9 -9 -9 -8 -7 -7 ------- Run | Yrd Mat Mat Sto Gar Mat Fac DSF Combat Hostiles Destroyed 30 | . 11 4 1 13 . . 1 Melee 7 | . 3 . . 3 . . 1 Guns 12 | . 8 1 . 3 . . . Cannons 11 | . . 3 1 7 . . . Classes Destroyed 8 | . 5 . 1 2 . . . Hauler 3 | . 1 2 . . . . . Recycler 2 | . 2 . . . . . . Operator 1 | . 1 . . . . . . Swarmer 11 | . 3 4 . 4 . . . Cutter 2 | . . . . 1 . . 1 Grunt 12 | . 8 . . 4 . . . Sentry 4 | . . . 1 3 . . . Programmer 1 | . . . . 1 . . . Best Kill Streak 6 | . 3 4 1 6 . . 1 Combat Bots Only 6 | . 3 4 1 6 . . 1 Max Kills in Single Turn 2 | . 1 2 1 1 . . 1 Gunslinging . | . . . . . . . . Exploded . | . . . . . . . . Melee 1 | . 1 . . 1 . . 1 Uniques/NPCs Destroyed . | . . . . . . . . Combat | -11 -10 -9 -9 -9 -8 -7 -7 -------- Run | Yrd Mat Mat Sto Gar Mat Fac DSF Hostile Shots Fired 299 | . 81 22 4 114 12 9 57 Missed 70 | . 15 11 1 30 2 4 7 Hits 229 | . 66 11 3 84 10 5 50 Melee 49 | . . . . 1 . . 48 Projectile 180 | . 66 11 3 83 10 5 2 AOE 2 | . . . . 2 . . . Critical Strikes 31 | . 2 . 1 5 1 . 22 Actively Blocked 3 | . . . . . 1 . 2 Part Disruptions 1 | . . . . 1 . . . Damage Taken 3399 | . 763 119 41 1279 176 44 977 Core 1254 | . 151 64 14 311 12 17 685 Absorbed by Shields . | . . . . . . . . Redirected to Shielding 52 | . . . . . 34 4 14 Core Remaining (%) 59 | 100 39 . . 2 97 . . Volleys Fired 91 | . 45 18 3 22 3 . . Largest 2 | . 2 2 1 1 1 . . Hottest 133 | . 105 133 33 45 5 . . Shots Fired 152 | . 90 32 3 24 3 . . Gun 112 | . 90 14 . 8 . . . Cannon 37 | . . 18 3 16 . . . Launcher . | . . . . . . . . Special 3 | . . . . . 3 . . Kinetic 35 | . . 16 3 16 . . . Thermal 96 | . 80 16 . . . . . Explosive . | . . . . . . . . Electromagnetic 18 | . 10 . . 8 . . . Robot Hit Streak 11 | . 9 5 2 11 5 . . Robot Miss Streak 4 | . 4 2 2 1 1 . . Penetration Max . | . . . . . . . . Secondary Targets 3 | . 3 . . . . . . Max Gunslinging Chain 1 | . 1 . . . . . . Shots Hit Robots 124 | . 61 17 2 38 2 . 4 Core Hits 52 | . 26 7 1 17 . . 1 Critical Kills . | . . . . . . . . Critical Parts Destroyed . | . . . . . . . . Critical Strikes 4 | . 1 . . 3 . . . Burn 1 | . 1 . . . . . . Sever 3 | . . . . 3 . . . Melee Attacks 60 | . 17 . . 25 . . 18 Impact . | . . . . . . . . Slashing 60 | . 17 . . 25 . . 18 Piercing . | . . . . . . . . Sneak Attacks 1 | . . . . 1 . . . Combat Hostiles 1 | . . . . 1 . . . Follow-up Attacks 1 | . 1 . . . . . . Damage Inflicted 2311 | . 810 298 45 1015 . . 143 Guns 837 | . 665 53 . 119 . . . Cannons 530 | . . 245 45 240 . . . Explosions . | . . . . . . . . Melee 938 | . 145 . . 656 . . 137 Ramming 6 | . . . . . . . 6 Kinetic 425 | . . 140 45 240 . . . Thermal 723 | . 565 158 . . . . . Explosive . | . . . . . . . . Electromagnetic 219 | . 100 . . 119 . . . Impact . | . . . . . . . . Slashing 938 | . 145 . . 656 . . 137 Piercing . | . . . . . . . . Highest Corruption 16 | . . . . 16 . . . Average Corruption 14 | . . . . 14 . . . Corruption Purged . | . . . . . . . . Corruption Blocked . | . . . . . . . . Effects 6 | . . . . 6 . . . Energy Discharges 3 | . . . . 3 . . . Data Loss (minor) 1 | . . . . 1 . . . Misfires 2 | . . . . 2 . . . Overload Shots . | . . . . . . . . Overflow Damage 53 | . . 8 . 36 . . 9 Projectiles 8 | . . 8 . . . . . Explosions . | . . . . . . . . Melee 45 | . . . . 36 . . 9 Knockbacks 1 | . . 1 . . . . . Impact . | . . . . . . . . Kinetic 1 | . . 1 . . . . . Secondary . | . . . . . . . . Self-Inflicted Damage 3 | . . . . . . . 3 Shots . | . . . . . . . . Rammed 2 | . . . . . . . 2 Targets Rammed 2 | . . . . . . . 2 Kicked . | . . . . . . . . Crushed . | . . . . . . . . Highest Temperature 486 | . 312 486 32 46 . 1 . Average Temperature 86 | . 90 102 20 14 . 1 . Received Heat Transfer 690 | . 417 33 36 177 9 18 . Effects 1 | . . 1 . . . . . Shutdowns 1 | . . 1 . . . . . Siege Activations . | . . . . . . . . Martial Activations . | . . . . . . . . Shielding Activations . | . . . . . . . . Robots Disrupted . | . . . . . . . . Combat Hostiles . | . . . . . . . . Robots Corrupted . | . . . . . . . . Combat Hostiles . | . . . . . . . . Parts Fried . | . . . . . . . . Impact Corruptions . | . . . . . . . . Robots Melted . | . . . . . . . . Combat Hostiles . | . . . . . . . . Parts Melted 3 | . 2 1 . . . . . Heat Transferred 1844 | . 1548 296 . . . . . Parts Sabotaged . | . . . . . . . . Parts Stolen . | . . . . . . . . Parts Stripped . | . . . . . . . . Power Chain Reactions . | . . . . . . . . Alert | -11 -10 -9 -9 -9 -8 -7 -7 ------- Run | Yrd Mat Mat Sto Gar Mat Fac DSF Maximum Alert Level 1 | . . . . 1 . . . Low Security (%) 82 | 100 100 100 100 37 100 100 100 Level 1 17 | . . . . 62 . . . Level 2 . | . . . . . . . . Level 3 . | . . . . . . . . Level 4 . | . . . . . . . . Level 5 . | . . . . . . . . High Security . | . . . . . . . . Max Security . | . . . . . . . . Peak Influence 252 | . 70 143 106 252 110 7 20 Initial 105 | . . 11 48 68 105 7 . Average 78 | . 19 94 61 184 62 2 2 Influence Increases 1037 | . 322 215 68 359 53 . 20 Destroy 0b10 Robot/C 620 | . 220 80 20 280 . . 20 Destroy 0b10 Robot/NC 30 | . 20 10 . . . . . Destroy Leader 76 | . 52 14 10 . . . . Allied During Kill 5 | . . . . 5 . . . Successful Hack 125 | . 15 51 7 14 38 . . Disable Machine 30 | . 15 . . . 15 . . Anti-Garrison Action 50 | . . . . 50 . . . Destroy Structure 11 | . . . 1 10 . . . Partial Spotted 15 | . . . 15 . . . . Lose Combat Pursuer 75 | . . 60 15 . . . . Influence Decreases 1017 | . 294 127 78 248 252 18 . Entered New Map 246 | . . 17 68 38 112 11 . Time Decay 491 | . 254 110 10 . 110 7 . Lost Part 200 | . 40 . . 150 10 . . Lost Ally 80 | . . . . 60 20 . . Squads Dispatched 6 | . 3 . . . 1 . 2 Investigation 1 | . 1 . . . . . . Extermination . | . . . . . . . . Reinforcement 5 | . 2 . . . 1 . 2 Assault . | . . . . . . . . Garrison . | . . . . . . . . Intercept . | . . . . . . . . Searches Triggered . | . . . . . . . . Construction Impeded . | . . . . . . . . Haulers Reinforced . | . . . . . . . . Active Scanning Responses . | . . . . . . . . Cargo Convoy Interrupts . | . . . . . . . . Stealth | -11 -10 -9 -9 -9 -8 -7 -7 --------- Run | Yrd Mat Mat Sto Gar Mat Fac DSF Distress Signals 2 | . 1 1 . . . . . Communications Jammed . | . . . . . . . . Distress Signals . | . . . . . . . . Times Spotted 65 | . 22 13 2 16 6 1 5 Peak Tracking Total 6 | . 5 4 2 5 6 2 4 Tactical Retreats 4 | . . 3 1 . . . . Traps | -11 -10 -9 -9 -9 -8 -7 -7 ------- Run | Yrd Mat Mat Sto Gar Mat Fac DSF Traps Triggered 3 | . 1 . . 1 1 . . Indirectly . | . . . . . . . . Trap Hack Attempts . | . . . . . . . . Triggered . | . . . . . . . . Disarmed . | . . . . . . . . Reprogrammed . | . . . . . . . . Reused . | . . . . . . . . Traps Extracted . | . . . . . . . . Installed . | . . . . . . . . Triggered . | . . . . . . . . Machines | -11 -10 -9 -9 -9 -8 -7 -7 ---------- Run | Yrd Mat Mat Sto Gar Mat Fac DSF Machines Disabled 3 | . 1 . . 1 1 . . Max in Single Turn 1 | . 1 . . 1 . . . Garrison Relay 1 | . . . . 1 . . . Machines Repaired . | . . . . . . . . Machines Dismantled . | . . . . . . . . Machines Sabotaged . | . . . . . . . . Overloaded Fab Kills . | . . . . . . . . Hacking | -11 -10 -9 -9 -9 -8 -7 -7 --------- Run | Yrd Mat Mat Sto Gar Mat Fac DSF Machines Accessed 20 | . 3 6 3 3 4 1 . Terminals 17 | . 3 4 2 3 4 1 . Fabricators . | . . . . . . . . Repair Stations . | . . . . . . . . Recycling Units 1 | . . 1 . . . . . Scanalyzers 1 | . . 1 . . . . . Garrison Access 1 | . . . 1 . . . . Total Hacks 53 | . 7 20 8 3 14 1 . Successful 36 | . 5 14 5 3 8 1 . Failed 17 | . 2 6 3 . 6 . . Catastrophic 1 | . . 1 . . . . . Database Lockouts . | . . . . . . . . Manual 18 | . 3 3 3 . 9 . . Terminals 42 | . 7 11 6 3 14 1 . Fabricators . | . . . . . . . . Repair Stations . | . . . . . . . . Recycling Units 2 | . . 2 . . . . . Scanalyzers 7 | . . 7 . . . . . Garrison Access 2 | . . . 2 . . . . Terminal Hacks 19 | . 2 5 3 3 5 1 . Record 1 | . . 1 . . . . . Part Schematic 1 | . . . 1 . . . . Open Door 2 | . . . 1 1 . . . Open DSF 1 | . . . . . . 1 . Branch Access Points 2 | . 1 1 . . . . . Emergency Access Points 2 | . . . . 1 1 . . Terminal Index 2 | . . 1 . . 1 . . Scanalyzer Index 1 | . 1 . . . . . . Locate Traps 1 | . . 1 . . . . . Dispatch Records 1 | . . . . . 1 . . Security Status 1 | . . . . . 1 . . Patrol Status 1 | . . . 1 . . . . Zone Layout 2 | . . 1 . . 1 . . Garrison Registry 1 | . . . . 1 . . . Fabricator Hacks . | . . . . . . . . Repair Station Hacks . | . . . . . . . . Recycling Unit Hacks . | . . . . . . . . Scanalyzer 7 | . . 7 . . . . . Insert Component 3 | . . 3 . . . . . Analyze 3 | . . 3 . . . . . Retrieve Study 1 | . . 1 . . . . . Garrison Access Hacks 1 | . . . 1 . . . . Unlock Access 1 | . . . 1 . . . . Unauthorized Hacks 9 | . 3 2 1 . 3 . . Terminals 9 | . 3 2 1 . 3 . . Botnet 9 | . 3 2 1 . 3 . . Fabricators . | . . . . . . . . Repair Stations . | . . . . . . . . Recycling Units . | . . . . . . . . Scanalyzers . | . . . . . . . . Garrison Access . | . . . . . . . . Data Cores Recovered . | . . . . . . . . Used . | . . . . . . . . Hacking Detections 15 | . 2 6 2 1 4 . . Full Trace Events . | . . . . . . . . Feedback Events . | . . . . . . . . Feedback Blocked . | . . . . . . . . Robot Schematics Acquired . | . . . . . . . . Robots Built . | . . . . . . . . Authchips . | . . . . . . . . Time . | . . . . . . . . Total Robot Build Rating . | . . . . . . . . Part Schematics Acquired 4 | . . 3 1 . . . . Parts Built . | . . . . . . . . Authchips . | . . . . . . . . Time . | . . . . . . . . Total Part Build Rating . | . . . . . . . . Part Studies Acquired 1 | . . 1 . . . . . Parts Repaired . | . . . . . . . . Time . | . . . . . . . . Parts Recycled . | . . . . . . . . Recycled Matter . | . . . . . . . . Retrieved Matter . | . . . . . . . . Retrieved Components . | . . . . . . . . Parts Scanalyzed 3 | . . 3 . . . . . Part Schematics Acquired 3 | . . 3 . . . . . Parts Damaged . | . . . . . . . . Bothacking | -11 -10 -9 -9 -9 -8 -7 -7 ------------ Run | Yrd Mat Mat Sto Gar Mat Fac DSF Used RIF Installer 1 | . . . . 1 . . . Robots Hacked 2 | . . . . . 2 . . Non-combat . | . . . . . . . . Combat 2 | . . . . . 2 . . Robot Hacks Applied 2 | . . . . . 2 . . parse_system 1 | . . . . . 1 . . formatsys_high 1 | . . . . . 1 . . Relay Couplers Released 4 | . . . . 4 . . . Machine Destruction 4 | . . . . 4 . . . Attached 1 | . . . . . 1 . . Fabnet Peak Effective % . | . . . . . . . . Robots Rewired 3 | . . . . 3 . . . Allies Hacked . | . . . . . . . . Hacks Repelled . | . . . . . . . . Allies | -11 -10 -9 -9 -9 -8 -7 -7 -------- Run | Yrd Mat Mat Sto Gar Mat Fac DSF Total Allies 4 | . . . . 3 1 . . Largest Group 3 | . . . . 3 1 . . Highest-Rated Group 76 | . . . . 76 15 . . Highest-Rated Ally 31 | . . . . 31 15 . . Total Orders 10 | . . . . 9 1 . . STAY 4 | . . . . 3 1 . . ROAM 1 | . . . . 1 . . . FOLLOW 3 | . . . . 3 . . . GUARD 1 | . . . . 1 . . . AID 1 | . . . . 1 . . . Ally Attacks 3 | . . . . 2 1 . . Total Damage 21 | . . . . 21 . . . Kills 1 | . . . . 1 . . . Allies Corrupted . | . . . . . . . . Allies Melted . | . . . . . . . . Intel | -11 -10 -9 -9 -9 -8 -7 -7 ------- Run | Yrd Mat Mat Sto Gar Mat Fac DSF Active Infowar (turns) 442 | . . . . 95 233 55 59 Sensors 434 | . . . . 95 233 55 51 Jamming 96 | . . . . . . 37 59 Robot Analysis Total . | . . . . . . . . Derelict Logs Recovered . | . . . . . . . . Drone Launches . | . . . . . . . . Drone Recoveries . | . . . . . . . . Exploration | -11 -10 -9 -9 -9 -8 -7 -7 ------------- Run | Yrd Mat Mat Sto Gar Mat Fac DSF Turns Passed 2006 | 67 734 226 33 571 233 55 87 Spaces Moved 2304 | 49 403 511 88 777 337 91 48 Core 25 | 8 5 . . 4 . . 8 Treads . | . . . . . . . . Legs 345 | 41 298 . . 6 . . . Wheels 6 | . 6 . . . . . . Hover 608 | . . . . 143 337 91 37 Flight 1320 | . 94 511 88 624 . . 3 Fastest Speed 26 | 50 95 26 26 26 56 56 35 Average Speed 54 | 108 118 26 26 40 56 56 53 Slowest Speed 275 | 120 190 26 26 275 56 56 56 Overloaded Moves . | . . . . . . . . Propulsion Burnouts . | . . . . . . . . Robots Hopped 1 | . . 1 . . . . . Potential Cave-ins . | . . . . . . . . Cave-ins Triggered 1 | . . . . 1 . . . Exploration Rate (%) 27 | 3 46 33 15 54 32 3 33 Regions Visited 7 Branch Regions 1 Pre-discovered Areas . | . . . . . . . . Known Exits Taken 4 | . 1 1 1 . . 1 . Unknown Exits Taken 2 | 1 . . . . 1 . . Scrap Searched . | . . . . . . . . Spaces Dug . | . . . . . . . . Terrain Destroyed 1 | . . . 1 . . . . Melee . | . . . . . . . . Projectile 1 | . . . 1 . . . . AOE . | . . . . . . . . Terrain Rammed . | . . . . . . . . Walls Destroyed . | . . . . . . . . Machines Disabled . | . . . . . . . . Actions | -11 -10 -9 -9 -9 -8 -7 -7 --------- Run | Yrd Mat Mat Sto Gar Mat Fac DSF Total 2789 | 60 535 573 93 976 380 95 77 Wait 167 | . 38 19 . 81 29 . . Move 2295 | 48 402 508 87 776 336 90 48 Hop 1 | . . 1 . . . . . Pick Up 36 | 6 12 6 . 8 4 . . Fast Attach 37 | 6 5 4 1 12 . 1 8 Attach 28 | . 4 4 . 13 5 2 . Detach 12 | . . 3 . 6 2 1 . Swap 9 | . 4 3 1 1 . . . Drop 28 | . 9 7 1 8 1 1 1 Fire 91 | . 45 18 3 22 3 . . Melee 59 | . 16 . . 25 . . 18 Ram 2 | . . . . . . . 2 Kick . | . . . . . . . . Crush . | . . . . . . . . Escape Stasis 10 | . . . . 10 . . . Rewire 14 | . . . . 14 . . . Trap . | . . . . . . . . Miscellaneous . | . . . . . . . . Route ------- -11/Scrapyard -10/Materials (discovered 2 exits: *Mat / *Min) -9/Materials (discovered 4 exits: *Min x2 / *Sto x2) -9/Storage -9/Garrison (discovered 3 exits: *Mat x3) -8/Materials -7/Factory -7/DSF History --------- Turn | Location | Event 2 | -11/Scrapyard | Met Revision 17 16 | -11/Scrapyard | Discovered new exit (range 14) 68 | -11/Scrapyard | Entered Materials 148 | -10/Materials | Identified exit to Mines 316 | -10/Materials | Build established: Mutant 448 | -10/Materials | Discovered new exit (range 9) 457 | -10/Materials | Identified exit to Materials 587 | -10/Materials | Lost 4 parts (1p1n2w) 724 | -10/Materials | Core integrity fell below 50% 802 | -10/Materials | Entered another Materials area 802 | -9/Materials | Evolved 2 slots: Propulsion x2 905 | -9/Materials | Discovered new exit (range 16) 944 | -9/Materials | Identified exit to Mines 944 | -9/Materials | Identified exit to Storage 1028 | -9/Materials | Entered Storage 1045 | -9/Storage | Identified exit to Garrison 1061 | -9/Storage | Entered Garrison 1099 | -9/Garrison | Triggered checkpoint 1109 | -9/Garrison | Build established: Sprinter 1145 | -9/Garrison | Discovered new exit (range 9) 1147 | -9/Garrison | Identified exit to Materials 1152 | -9/Garrison | Discovered exit to Materials (range 14) 1152 | -9/Garrison | Discovered exit to Materials (range 56) 1152 | -9/Garrison | Discovered exit to Materials (range 59) 1182 | -9/Garrison | Installed Relay Interface Framework 1184 | -9/Garrison | Garrison Relay disabled 1201 | -9/Garrison | Triggered checkpoint 1223 | -9/Garrison | Triggered checkpoint 1274 | -9/Garrison | Lost 5 parts (1p3n1w) 1479 | -9/Garrison | Crushed by falling debris 1479 | -9/Garrison | System corruption reached 10% 1490 | -9/Garrison | Lost 3 allies 1494 | -9/Garrison | Core integrity fell below 50% 1511 | -9/Garrison | Core integrity fell below 20% 1553 | -9/Garrison | Lost 8 parts (2p3n2u1w) 1632 | -9/Garrison | Entered Materials 1632 | -8/Materials | Evolved 2 slots: Utility x2 1809 | -8/Materials | Build established: Scavenger-Mutant 1860 | -8/Materials | Discovered new exit (range 4) 1865 | -8/Materials | Entered Factory 1865 | -7/Factory | Evolved 2 slots: Power x1, Utility x1 1872 | -7/Factory | Identified exit to DSF 1920 | -7/Factory | Entered DSF 1949 | -7/DSF | Additional patrols routed to DSF 1990 | -7/DSF | Core integrity fell below 50% 2003 | -7/DSF | Core integrity fell below 20% 2007 | -7/DSF | Destroyed by H-61 Shepherd with Heavy Assault Cannon Last Messages --------------- 01984_ Weight Redist. System severed. 01984_ Acquired Great Axe. 01985_ Great Axe severed. 01986_ Acquired Great Axe. 01986_ Great Axe severed. 01987_ Relay Coupler [Sentry] destroyed. 01987_ Acquired Great Axe. 01989_ Great Axe severed. 01990_ ALERT: Suspicious intruders detected, dispatching Cutter reinforcements to area. 01992_ Acquired Great Axe. 01993_ Great Axe severed. 01993_ Acquired Great Axe. 01997_ C-17 Slicer destroyed. 01998_ Great Axe severed. 02000_ Slammed into C-17 Slicer. 02001_ Acquired 22 matter. 02002_ Acquired Surge Thruster. 02005_ Knocked back. 02005_ Surge Thruster severed. Map ----- +----------------------------------------------------+ | ??????????????????????????????????????? | | ??????????????????????????????????????? | | ??????????????????????????????????????? | | ??????????????????????????????????????? | | ??????????????????????????????????????? | | ??????????????????????????????????????? | | ??????????????????????????????????????? | | ??????????????????????????????????????? | | ??????????????????????????????????????? | | ??????????????????????????????????????? | | ??????????????????????????????????????? | | ??????????????????????????????????????? | | ??????????????????????????????????????? | | ??????????????????????????????????????? | | ??????????????????????????????????????? | | ??????????????????????????????????????? | | ??????????????????????????????????????? | | ??????????????????????????????????????? | | ??????????????????????????????????????? | | ??????????????????????????????????????? | | ??????###########?###?????????????????? | | ??????#[[ ##[[[#!!!#???? ##??????????? | | ??????#[[ ##[[[#!!!##a a##?????????? | | ??????# % ????????? | | ??????# % H ????????? | | ??????# c c @ ????????? | | ??????# c## #===##a a#??????????? | | ??????# ## #?????????????????????? | | ??????### ######?????????????????????? | | ???????#/ ]//#????????????????????????? | | ???????#// //#????????????????????????? | | ???????#/ !*/#????????????????????????? | | ???????## /###????????????????????????? | | ???????#/ !/!#????????????????????????? | | ???????#/ =#????????????????????????? | | ???????## ######?????????????????????? | | ??????### ###//#??/#?????????????????? | | ????###"" ## /#///### #???????????? | | ????""""" / ?????????? | | ????"##"" ?????????? | | ??????#"""""##//# #!!!!! #?????????? | | ??????#"""""#########??!!! #?????????? | | ??????####"##?????????????##??????????? | | ?????????#"#??????????????????????????? | | ?????????""#??????????????????????????? | | ?????????##???????????????????????????? | | ??????????????????????????????????????? | | ??????????????????????????????????????? | | ??????????????????????????????????????? | | ??????????????????????????????????????? | +----------------------------------------------------+ Best States ------------- Heat Dissipation 42 Energy Generation 24 Energy Capacity 325 Matter Stores 300 Matter Capacity 300 Sight Range 16 Robot Scan Range 14 Terrain Scan Density 10 Jamming Range 12 Additional Mass Support 6 Propulsion Shielding 33 Evasion (%) 64 Relay Coupler Types 1 Relay Coupler Value 19 Item Schematics ----------------- Weight Redist. System | -9/Materials | Scanalyzed VTOL Module | -9/Materials | Scanalyzed Propulsion Shielding | -9/Materials | Scanalyzed Imp. Deuterium Engine | -9/Storage | Hacked Robot Schematics ------------------ None Fabricated ------------ Nothing Repaired ---------- Nothing Studied --------- VTOL Module | -9/Materials | Hacked Alien Tech Used ----------------- None Achievements -------------- Assimilation Complete Mindtrick You Again Challenges ------------ None Game ------ Seed ExpertBoreSpecial Manual? 0 Play Time 00:56:16 Cumulative 29.1 hours Start 2026.07.06 @ 20:18:52 End 2026.07.06 @ 22:09:02 Sessions 1 Manual Loads 0 Difficulty Rogue Special Mode None Game No. 23 Rogue 23 Adventurer 0 Explorer 0 Win Type - Total 0 Types 0/0/0/0/0/0/0/0/0/0 Lore% 20 Gallery% 23 Achievement% 24 Wizard Run 0 Options --------- Layout 1 ASCII 0 Keyboard 0 Movement Mouse Keybinds 0 Fullscreen 1 Font 24/Smallcaps Map View 50x35 Zoom Use 0% Tactical HUD 1 Map Filters NONE Filters NONE Steam 1 RUN: 05e2eafc-ff3f-4d04-92ba-f5d8b3367df0